fUSD/lending_fUSD_20240921
["ID","MTS","AMOUNT","RATE_DAILY","PERIOD"]
[338753728,1726908673128,-500.0,0.00014299,2]
[338753729,1726908673137,-500.0,0.00014299,2]
[338753730,1726908673146,-500.0,0.00014299,2]
[338753731,1726908673156,-500.0,0.00014299,2]
[338753732,1726908673165,-500.0,0.00014299,2]
[338753733,1726908673174,-500.0,0.00014299,2]
[338753734,1726908673184,-500.0,0.00014299,2]
[338753735,1726908673193,-500.0,0.00014299,2]
[338753736,1726908673202,-500.0,0.00014299,2]
[338753737,1726908673211,-500.0,0.00014299,2]
[338753738,1726908673220,-500.0,0.00014299,2]
[338753739,1726908673230,-500.0,0.00014299,2]
[338753740,1726908673239,-500.0,0.00014299,2]
[338753741,1726908673249,-342.15,0.00014299,2]
[338753742,1726908673258,-500.0,0.00014299,2]
[338753743,1726908673268,-500.0,0.00014299,2]
[338753744,1726908673278,-566.85,0.00014299,2]
[338753745,1726908673287,-500.0,0.00014299,2]
[338753746,1726908673296,-500.0,0.00014299,2]
[338753747,1726908673305,-500.0,0.00014299,2]
[338753748,1726908673315,-500.0,0.00014299,2]
[338753749,1726908673324,-500.0,0.00014299,2]
[338753750,1726908673333,-500.0,0.00014299,2]
[338753751,1726908673343,-500.0,0.00014299,2]
[338753752,1726908673354,-500.0,0.00014299,2]
[338753753,1726908673363,-500.0,0.00014299,2]
[338753754,1726908673373,-201.9,0.00014299,2]
[338753755,1726908673382,-500.0,0.00014299,2]
[338753756,1726908673391,-500.0,0.00014299,2]
[338753757,1726908673400,-500.0,0.00014299,2]
[338753758,1726908673410,-154.54,0.00014299,2]
[338753759,1726908673419,-500.0,0.00014299,2]
[338753760,1726908673428,-500.0,0.00014299,2]
[338753761,1726908673437,-500.0,0.00014299,2]
[338753762,1726908673446,-500.0,0.00014299,2]
[338753763,1726908673456,-500.0,0.00014299,2]
[338753764,1726908673465,-199.4,0.00014299,2]
[338753765,1726908673474,-500.0,0.00014299,2]
[338753766,1726908673483,-500.0,0.00014299,2]
[338753767,1726908673493,-500.0,0.00014299,2]
[338753768,1726908673502,-641.2,0.00014299,2]
[338753769,1726908673511,-243.97284566,0.00014299,2]
[338753770,1726908673522,-151.0,0.00014299,2]
[338753771,1726908673533,-151.0,0.00014299,2]
[338753772,1726908673543,-151.0,0.00014299,2]
[338753773,1726908673553,-158.248686,0.00014299,2]
[338753774,1726908673564,-158.248686,0.00014299,2]
[338753775,1726908673575,-151.0,0.00014299,2]
[338753776,1726908673585,-151.0,0.00014299,2]
[338753777,1726908673594,-151.0,0.00014299,2]
[338753778,1726908673608,-151.0,0.00014299,2]
[338753779,1726908673619,-265.966855,0.00014299,2]
[338753780,1726908673629,-151.0,0.00014299,2]
[338753781,1726908673638,-151.0,0.00014299,2]
[338753782,1726908673649,-151.0,0.00014299,2]
[338753783,1726908673659,-151.0,0.00014299,2]
[338753784,1726908673671,-151.780054,0.00014299,2]
[338753785,1726908673681,-151.0,0.00014299,2]
[338753786,1726908673690,-151.0,0.00014299,2]
[338753787,1726908673700,-301.769126,0.00014299,2]
[338753788,1726908673711,-497.185362,0.00014299,2]
[338753789,1726908673724,-497.185362,0.00014299,2]
[338753790,1726908673734,-196.683438,0.00014299,2]
[338753791,1726908673743,-196.683438,0.00014299,2]
[338753792,1726908673754,-388.814471,0.00014299,2]
[338753793,1726908673763,-388.814471,0.00014299,2]
[338753794,1726908673772,-151.0,0.00014299,2]
[338753795,1726908673782,-151.0,0.00014299,2]
[338753796,1726908673791,-166.663626,0.00014299,2]
[338753797,1726908673801,-166.663626,0.00014299,2]
[338753798,1726908673927,-151.0,0.00014299,2]
[338753799,1726908673937,-151.0,0.00014299,2]
[338753800,1726908673946,-151.0,0.00014299,2]
[338753801,1726908673955,-210.980997,0.00014299,2]
[338753802,1726908673965,-151.0,0.00014299,2]
[338753803,1726908673974,-251.914123,0.00014299,2]
[338753804,1726908673983,-251.914123,0.00014299,2]
[338753805,1726908673994,-151.0,0.00014299,2]
[338753806,1726908674003,-151.0,0.00014299,2]
[338753807,1726908674012,-151.0,0.00014299,2]
[338753808,1726908674022,-6728.906918,0.00014299,2]
[338753809,1726908674031,-151.0,0.00014299,2]
[338753810,1726908674041,-6728.906918,0.00014299,2]
[338753811,1726908674050,-151.0,0.00014299,2]
[338753812,1726908674059,-151.0,0.00014299,2]
[338753813,1726908674068,-151.0,0.00014299,2]
[338753814,1726908674078,-824.592225,0.00014299,2]
[338753815,1726908674087,-151.0,0.00014299,2]
[338753816,1726908674098,-824.592225,0.00014299,2]
[338753817,1726908674107,-151.0,0.00014299,2]
[338753818,1726908674116,-151.0,0.00014299,2]
[338753819,1726908674125,-151.0,0.00014299,2]
[338753820,1726908674135,-151.0,0.00014299,2]
[338753821,1726908674144,-151.0,0.00014299,2]
[338753822,1726908674154,-185.785039,0.00014299,2]
[338753823,1726908674163,-185.785039,0.00014299,2]
[338753824,1726908674172,-151.0,0.00014299,2]
[338753825,1726908674182,-151.0,0.00014299,2]
[338753826,1726908674191,-151.0,0.00014299,2]
[338753827,1726908674200,-500.0,0.00014299,2]
[338753828,1726908674209,-238.11119259,0.00014299,2]
[338753829,1726908674218,-500.0,0.00014299,2]
[338753830,1726908674227,-500.0,0.00014299,2]
[338753831,1726908674236,-500.0,0.00014299,2]
[338753832,1726908674245,-500.0,0.00014299,2]
[338753833,1726908674255,-500.0,0.00014299,2]
[338753834,1726908674264,-500.0,0.00014299,2]
[338753835,1726908674273,-1100703.11676046,0.000143,2]
[338753836,1726908675508,-655.6964493,0.000143,2]
[338753837,1726908675520,-698.46349581,0.000143,2]
[338753838,1726908675532,-88161.89124824,0.000143,2]
[338753839,1726908675543,-3500.0,0.000143,2]
[338753840,1726908675566,-297.97689013,0.00012896,2]
[338753841,1726908675578,-202.02310987,0.00012896,2]
[338753842,1726908675587,-515.93895067,0.000143,2]
[338753843,1726908675608,-151.77,0.00013918,30]
[338753844,1726908675617,-200.15,0.000143,2]
[338753845,1726908675629,-5041.6,0.000143,2]
[338753846,1726908675640,-3045.43333005,0.000143,2]
[338753847,1726908675652,-2510.72,0.000143,2]
[338753848,1726908675663,-8752.22233078,0.000143,2]
[338753849,1726908675856,-500.0,0.00012896,2]
[338753850,1726908675866,-500.0,0.00012993,2]
[338753851,1726908675876,-500.0,0.00012993,2]
[338753852,1726908675885,-110.53421101,0.00012998,2]
[338753853,1726908675897,-389.46578899,0.00012998,2]
[338753854,1726908675906,-316.57421101,0.00012998,2]
[338753855,1726908675922,-183.42578899,0.00012998,2]
[338753856,1726908675932,-500.0,0.00013799,2]
[338753857,1726908675941,-151.055,0.00013802,2]
[338753858,1726908675950,-500.0,0.00013888,2]
[338753859,1726908675960,-84828.70009302,0.000143,2]
[338753860,1726908675971,-500.0,0.000143,2]
[338753861,1726908675983,-397.63098387,0.000143,2]
[338753862,1726908675994,-4832.22556236,0.000143,2]
[338753863,1726908676005,-9920.5,0.000143,2]
[338753864,1726908676017,-351.13872731,0.000143,2]
[338753865,1726908676033,-30132.31558998,0.000143,2]
[338753866,1726908676052,-662.78984129,0.000143,2]
[338753867,1726908676072,-228.64963376,0.00013899,2]
[338753868,1726908676081,-2819.67809506,0.000143,2]
[338753869,1726908676198,-500.0,0.0001299,2]
[338753870,1726908676208,-561.46,0.00012997,2]
[338753871,1726908676218,-24293.44844606,0.000143,2]
[338753872,1726908676230,-1448.13210903,0.000143,2]
[338753873,1726908676246,-715.36994382,0.000143,2]
[338753874,1726908676258,-931.13278959,0.000143,2]
[338753875,1726908676274,-2833.13889606,0.000143,2]
[338753876,1726908676286,-659.52544,0.000143,2]
[338753877,1726908676297,-735.915,0.000143,2]
[338753878,1726908676309,-24856.3089465,0.000143,2]
[338753879,1726908676321,-12175.6,0.000143,2]
[338753880,1726908676332,-5557.37127244,0.000143,2]
[338753881,1726908676343,-530.95163184,0.000143,2]
[338753882,1726908676356,-297.95376087,0.000143,2]
[338753883,1726908676368,-293.30521316,0.000143,2]
[338753884,1726908676380,-1310.89655929,0.000143,2]
[338753885,1726908676391,-429678.78277713,0.000143,2]
[338753886,1726908676403,-1952.95,0.000143,2]
[338753887,1726908676413,-151.0,0.000143,2]
[338753888,1726908676423,-151.0,0.000143,2]
[338753889,1726908676433,-158.248686,0.000143,2]
[338753890,1726908676443,-158.248686,0.000143,2]
[338753891,1726908676453,-151.0,0.000143,2]
[338753892,1726908676463,-151.0,0.000143,2]
[338753893,1726908676473,-151.0,0.000143,2]
[338753894,1726908676483,-151.0,0.000143,2]
[338753895,1726908676493,-151.0,0.000143,2]
[338753896,1726908676503,-151.0,0.000143,2]
[338753897,1726908676513,-300.680742,0.000143,2]
[338753898,1726908676522,-300.680742,0.000143,2]
[338753899,1726908676532,-151.0,0.000143,2]
[338753900,1726908676541,-151.0,0.000143,2]
[338753901,1726908676552,-497.185362,0.000143,2]
[338753902,1726908676561,-497.185362,0.000143,2]
[338753903,1726908676571,-196.683438,0.000143,2]
[338753904,1726908676581,-196.683438,0.000143,2]
[338753905,1726908676591,-388.814471,0.000143,2]
[338753906,1726908676601,-388.814471,0.000143,2]
[338753907,1726908676611,-151.0,0.000143,2]
[338753908,1726908676621,-249.675615,0.000143,2]
[338753909,1726908676631,-166.663626,0.000143,2]
[338753910,1726908676641,-166.663626,0.000143,2]
[338753911,1726908676650,-151.0,0.000143,2]
[338753912,1726908676660,-151.0,0.000143,2]
[338753913,1726908676670,-151.0,0.000143,2]
[338753914,1726908676679,-151.0,0.000143,2]
[338753915,1726908676689,-251.914123,0.000143,2]
[338753916,1726908676699,-251.914123,0.000143,2]
[338753917,1726908676710,-151.0,0.000143,2]
[338753918,1726908676720,-151.0,0.000143,2]
[338753919,1726908676734,-6728.906918,0.000143,2]
[338753920,1726908676745,-151.0,0.000143,2]
[338753921,1726908676754,-6728.906918,0.000143,2]
[338753922,1726908676765,-151.0,0.000143,2]
[338753923,1726908676775,-151.0,0.000143,2]
[338753924,1726908676785,-151.0,0.000143,2]
[338753925,1726908676796,-824.592225,0.000143,2]
[338753926,1726908676807,-151.0,0.000143,2]
[338753927,1726908676817,-824.592225,0.000143,2]
[338753928,1726908676827,-151.0,0.000143,2]
[338753929,1726908676837,-151.0,0.000143,2]
[338753930,1726908676847,-151.0,0.000143,2]
[338753931,1726908676857,-206.924078,0.000143,2]
[338753932,1726908676866,-151.0,0.000143,2]
[338753933,1726908676876,-185.785039,0.000143,2]
[338753934,1726908676886,-185.785039,0.000143,2]
[338753935,1726908676896,-151.0,0.000143,2]
[338753936,1726908676906,-151.0,0.000143,2]
[338753937,1726908676916,-151.0,0.000143,2]
[338753938,1726908676926,-159.53480383,0.00014317,2]
[338753939,1726908676936,-206.0,0.0001432,2]
[338753940,1726908676946,-5489.13,0.0001436,6]
[338753941,1726908676956,-1301.4,0.00014384,2]
[338753942,1726908676966,-1000.0,0.000144,3]
[338753943,1726908676975,-1000.0,0.000144,3]
[338753944,1726908676986,-1000.0,0.000144,5]
[338753945,1726908676995,-1000.0,0.000144,5]
[338753946,1726908677005,-1000.0,0.000144,6]
[338753947,1726908677016,-1000.0,0.000144,3]
[338753948,1726908677025,-1000.0,0.000144,4]
[338753949,1726908677035,-1000.0,0.000144,4]
[338753950,1726908677045,-1000.0,0.000144,4]
[338753951,1726908677054,-1000.0,0.000144,4]
[338753952,1726908677064,-1000.0,0.000144,4]
[338753953,1726908677074,-721.0,0.000144,2]
[338753954,1726908677084,-150.0,0.0001442,2]
[338753955,1726908677095,-210.55132357,0.00014423,2]
[338753956,1726908677107,-531.28460301,0.00014437,2]
[338753957,1726908677117,-159.53480383,0.00014443,2]
[338753958,1726908677126,-152.0,0.00014445,3]
[338753959,1726908677137,-1509.0275737,0.00014447,2]
[338753960,1726908677147,-150.218,0.0001446,2]
[338753961,1726908677157,-206.0,0.0001449,2]
[338753962,1726908677167,-1000.0,0.000145,4]
[338753963,1726908677177,-1000.0,0.000145,4]
[338753964,1726908677186,-1000.0,0.000145,4]
[338753965,1726908677196,-1000.0,0.000145,4]
[338753966,1726908677206,-1000.0,0.000145,5]
[338753967,1726908677216,-1000.0,0.000145,3]
[338753968,1726908677225,-1002.0,0.000145,4]
[338753969,1726908677235,-348.02,0.00014504,2]
[338753970,1726908677245,-500.0,0.00014504,2]
[338753971,1726908677255,-500.0,0.00014504,2]
[338753972,1726908677265,-641.45,0.00014504,2]
[338753973,1726908677275,-888.0,0.0001451,2]
[338753974,1726908677285,-20613.14,0.00014521,2]
[338753975,1726908677295,-1000.0,0.00014521,2]
[338753976,1726908677305,-478.886115,0.00014521,2]
[338753977,1726908677315,-1288.0,0.0001453,2]
[338753978,1726908677324,-181.75,0.00014566,2]
[338753979,1726908677334,-500.0,0.00014566,2]
[338753980,1726908677344,-500.0,0.00014566,2]
[338753981,1726908677355,-500.0,0.00014566,2]
[338753982,1726908677364,-500.0,0.00014566,2]
[338753983,1726908677374,-500.0,0.00014566,2]
[338753984,1726908677383,-500.0,0.00014566,2]
[338753985,1726908677393,-500.0,0.00014566,2]
[338753986,1726908677403,-500.0,0.00014566,2]
[338753987,1726908677412,-191.39,0.00014566,2]
[338753988,1726908677422,-1000.0,0.00014566,2]
[338753989,1726908677433,-159.53480383,0.00014568,2]
[338753990,1726908677442,-151.99806496,0.00014575,2]
[338753991,1726908677452,-151.99806496,0.00014575,2]
[338753992,1726908677462,-1000.0,0.000146,4]
[338753993,1726908677471,-1000.0,0.000146,4]
[338753994,1726908677481,-1000.0,0.000146,4]
[338753995,1726908677490,-1002.0,0.000146,4]
[338753996,1726908677500,-1000.0,0.000146,5]
[338753997,1726908677509,-1000.0,0.000146,3]
[338753998,1726908677518,-334.86,0.00014611,2]
[338753999,1726908677529,-1000.0,0.00014612,2]
[338754000,1726908677538,-154.01,0.00014638,2]
[338754001,1726908677548,-3642.66610213,0.00014646,2]
[338754002,1726908677558,-1000.0,0.00014658,2]
[338754003,1726908677567,-206.0,0.0001466,2]
[338754004,1726908677577,-500.0,0.00014687,2]
[338754005,1726908677587,-486.48,0.00014687,2]
[338754006,1726908677596,-500.0,0.00014687,2]
[338754007,1726908677607,-500.0,0.00014687,2]
[338754008,1726908677616,-175.36,0.00014687,2]
[338754009,1726908677626,-500.0,0.00014687,2]
[338754010,1726908677636,-500.0,0.00014687,2]
[338754011,1726908677646,-500.0,0.00014687,2]
[338754012,1726908677657,-350.62,0.00014687,2]
[338754013,1726908677666,-500.0,0.00014687,2]
[338754014,1726908677676,-500.0,0.00014687,2]
[338754015,1726908677686,-500.0,0.00014687,2]
[338754016,1726908677696,-500.0,0.00014687,2]
[338754017,1726908677706,-500.0,0.00014687,2]
[338754018,1726908677716,-500.0,0.00014687,2]
[338754019,1726908677731,-159.53480383,0.00014694,2]
[338754020,1726908677741,-159.42797736,0.00014694,2]
[338754021,1726908677751,-210.55132357,0.00014694,2]
[338754022,1726908677763,-175.0119849,0.00014694,2]
[338754023,1726908677774,-531.28460301,0.00014694,2]
[338754024,1726908677785,-1509.0275737,0.00014694,2]
[338754025,1726908677795,-194.0,0.000147,2]
[338754026,1726908677805,-1000.0,0.000147,2]
[338754027,1726908677816,-1000.0,0.000147,2]
[338754028,1726908677827,-1000.0,0.000147,2]
[338754029,1726908677839,-1000.0,0.000147,2]
[338754030,1726908677849,-1000.0,0.000147,2]
[338754031,1726908677859,-1000.0,0.000147,2]
[338754032,1726908677869,-1000.0,0.000147,2]
[338754033,1726908677879,-1000.0,0.000147,2]
[338754034,1726908677889,-1000.0,0.000147,2]
[338754035,1726908677898,-1000.0,0.000147,2]
[338754036,1726908677908,-537.0,0.000147,7]
[338754037,1726908677918,-653.0,0.000147,2]
[338754038,1726908677928,-1388.1,0.000147,8]
[338754039,1726908677938,-1000.0,0.00014703,2]
[338754040,1726908677948,-1000.0,0.00014749,2]
[338754041,1726908677959,-151.99806496,0.00014767,2]
[338754042,1726908677970,-151.99806496,0.00014767,2]
[338754043,1726908677980,-151.99806496,0.00014767,2]
[338754044,1726908677991,-308.68,0.00014769,2]
[338754045,1726908678001,-305.81,0.0001477,2]
[338754046,1726908678011,-500.0,0.00014771,2]
[338754047,1726908678021,-500.0,0.00014771,2]
[338754048,1726908678031,-500.0,0.00014771,2]
[338754049,1726908678041,-228.48,0.00014771,2]
[338754050,1726908678051,-527.9,0.00014771,2]
[338754051,1726908678061,-434.16,0.00014771,2]
[338754052,1726908678071,-371.28,0.00014771,2]
[338754053,1726908678081,-229.84,0.00014771,2]
[338754054,1726908678092,-219.52,0.00014771,2]
[338754055,1726908678103,-500.0,0.00014771,2]
[338754056,1726908678121,-243.84,0.00014771,2]
[338754057,1726908678131,-500.0,0.00014771,2]
[338754058,1726908678141,-500.0,0.00014771,2]
[338754059,1726908678152,-500.0,0.00014773,2]
[338754060,1726908678162,-500.0,0.00014773,2]
[338754061,1726908678172,-500.0,0.00014773,2]
[338754062,1726908678182,-500.0,0.00014773,2]
[338754063,1726908678192,-500.0,0.00014773,2]
[338754064,1726908678202,-500.0,0.00014773,2]
[338754065,1726908678212,-500.0,0.00014773,2]
[338754066,1726908678222,-500.0,0.00014773,2]
[338754067,1726908678232,-500.0,0.00014773,2]
[338754068,1726908678242,-500.0,0.00014773,2]
[338754069,1726908678252,-150.0,0.0001478,2]
[338754070,1726908678263,-500.0,0.00014782,2]
[338754071,1726908678274,-500.0,0.00014782,2]
[338754072,1726908678284,-349.52,0.00014782,2]
[338754073,1726908678295,-581.03,0.00014782,2]
[338754074,1726908678305,-589.96,0.00014782,2]
[338754075,1726908678315,-365.25,0.00014782,2]
[338754076,1726908678325,-527.9,0.00014782,2]
[338754077,1726908678336,-578.16,0.00014782,2]
[338754078,1726908678347,-500.0,0.00014782,2]
[338754079,1726908678358,-500.0,0.00014782,2]
[338754080,1726908678369,-500.0,0.00014782,2]
[338754081,1726908678746,-151.0,0.00014782,2]
[338754082,1726908678756,-500.0,0.00014783,2]
[338754083,1726908678766,-500.0,0.00014783,2]
[338754084,1726908678777,-500.0,0.00014783,2]
[338754085,1726908678787,-500.0,0.00014783,2]
[338754086,1726908678797,-500.0,0.00014783,2]
[338754087,1726908678809,-500.0,0.00014783,2]
[338754088,1726908678818,-500.0,0.00014783,2]
[338754089,1726908678828,-500.0,0.00014783,2]
[338754090,1726908678838,-279.05,0.00014783,2]
[338754091,1726908678848,-500.0,0.00014783,2]
[338754092,1726908678858,-500.0,0.00014783,2]
[338754093,1726908678867,-500.0,0.00014783,2]
[338754094,1726908678877,-500.0,0.00014783,2]
[338754095,1726908678887,-463.02581769,0.00014783,2]
[338754096,1726908678896,-277.56434372,0.00014783,2]
[338754097,1726908678906,-500.0,0.00014783,2]
[338754098,1726908678916,-500.0,0.00014783,2]
[338754099,1726908678925,-500.0,0.00014783,2]
[338754100,1726908678934,-500.0,0.00014783,2]
[338754101,1726908678945,-500.0,0.00014783,2]
[338754102,1726908678955,-500.0,0.00014783,2]
[338754103,1726908678964,-500.0,0.00014783,2]
[338754104,1726908678974,-500.0,0.00014783,2]
[338754105,1726908678983,-500.0,0.00014783,2]
[338754106,1726908678992,-500.0,0.00014783,2]
[338754107,1726908679002,-500.0,0.00014783,2]
[338754108,1726908679012,-500.0,0.00014783,2]
[338754109,1726908679021,-500.0,0.00014783,2]
[338754110,1726908679030,-500.0,0.00014783,2]
[338754111,1726908679040,-500.0,0.00014783,2]
[338754112,1726908679049,-500.0,0.00014783,2]
[338754113,1726908679058,-500.0,0.00014783,2]
[338754114,1726908679067,-500.0,0.00014783,2]
[338754115,1726908679076,-500.0,0.00014783,2]
[338754116,1726908679085,-500.0,0.00014783,2]
[338754117,1726908679095,-500.0,0.00014783,2]
[338754118,1726908679104,-500.0,0.00014783,2]
[338754119,1726908679114,-500.0,0.00014783,2]
[338754120,1726908679123,-527.98808275,0.00014783,2]
[338754121,1726908679132,-500.0,0.00014783,2]
[338754122,1726908679142,-500.0,0.00014783,2]
[338754123,1726908679151,-500.0,0.00014783,2]
[338754124,1726908679161,-500.0,0.00014783,2]
[338754125,1726908679170,-500.0,0.00014783,2]
[338754126,1726908679180,-500.0,0.00014783,2]
[338754127,1726908679189,-500.0,0.00014783,2]
[338754128,1726908679198,-500.0,0.00014783,2]
[338754129,1726908679208,-500.0,0.00014783,2]
[338754130,1726908679217,-500.0,0.00014783,2]
[338754131,1726908679227,-500.0,0.00014783,2]
[338754132,1726908679236,-500.0,0.00014783,2]
[338754133,1726908679245,-500.0,0.00014783,2]
[338754134,1726908679255,-500.0,0.00014783,2]
[338754135,1726908679264,-500.0,0.00014783,2]
[338754136,1726908679274,-500.0,0.00014783,2]
[338754137,1726908679284,-601.13,0.00014783,2]
[338754138,1726908679294,-500.0,0.00014783,2]
[338754139,1726908679303,-194.90484398,0.00014783,2]
[338754140,1726908679312,-500.0,0.00014783,2]
[338754141,1726908679321,-527.7,0.00014783,2]
[338754142,1726908679332,-500.0,0.00014783,2]
[338754143,1726908679341,-500.0,0.00014783,2]
[338754144,1726908679352,-500.0,0.00014783,2]
[338754145,1726908679362,-500.0,0.00014783,2]
[338754146,1726908679372,-500.0,0.00014783,2]
[338754147,1726908679381,-500.0,0.00014783,2]
[338754148,1726908679390,-500.0,0.00014783,2]
[338754149,1726908679400,-500.0,0.00014783,2]
[338754150,1726908679410,-500.0,0.00014783,2]
[338754151,1726908679420,-500.0,0.00014783,2]
[338754152,1726908679429,-500.0,0.00014783,2]
[338754153,1726908679439,-500.0,0.00014783,2]
[338754154,1726908679449,-500.0,0.00014783,2]
[338754155,1726908679459,-500.0,0.00014783,2]
[338754156,1726908679469,-500.0,0.00014783,2]
[338754157,1726908679479,-559.41,0.00014783,2]
[338754158,1726908679488,-500.0,0.00014783,2]
[338754159,1726908679498,-324.17,0.00014783,2]
[338754160,1726908679508,-500.0,0.00014783,2]
[338754161,1726908679517,-500.0,0.00014783,2]
[338754162,1726908679527,-500.0,0.00014783,2]
[338754163,1726908679536,-500.0,0.00014783,2]
[338754164,1726908679546,-543.4,0.00014783,2]
[338754165,1726908679556,-500.0,0.00014783,2]
[338754166,1726908679566,-500.0,0.00014783,2]
[338754167,1726908679575,-500.0,0.00014783,2]
[338754168,1726908679585,-500.0,0.00014783,2]
[338754169,1726908679594,-500.0,0.00014783,2]
[338754170,1726908679605,-500.0,0.00014783,2]
[338754171,1726908679614,-500.0,0.00014783,2]
[338754172,1726908679623,-500.0,0.00014783,2]
[338754173,1726908679633,-500.0,0.00014783,2]
[338754174,1726908679642,-500.0,0.00014783,2]
[338754175,1726908679652,-500.0,0.00014783,2]
[338754176,1726908679661,-500.0,0.00014783,2]
[338754177,1726908679671,-500.0,0.00014783,2]
[338754178,1726908679680,-500.0,0.00014783,2]
[338754179,1726908679689,-500.0,0.00014783,2]
[338754180,1726908679699,-500.0,0.00014783,2]
[338754181,1726908679708,-500.0,0.00014783,2]
[338754182,1726908679718,-396.64971437,0.00014783,2]
[338754183,1726908679731,-500.0,0.00014783,2]
[338754184,1726908679740,-500.0,0.00014783,2]
[338754185,1726908679750,-500.0,0.00014783,2]
[338754186,1726908679760,-500.0,0.00014783,2]
[338754187,1726908679769,-500.0,0.00014783,2]
[338754188,1726908679778,-500.0,0.00014783,2]
[338754189,1726908679788,-500.0,0.00014783,2]
[338754190,1726908679797,-500.0,0.00014783,2]
[338754191,1726908679807,-500.0,0.00014783,2]
[338754192,1726908679817,-500.0,0.00014783,2]
[338754193,1726908679827,-500.0,0.00014783,2]
[338754194,1726908679837,-500.0,0.00014783,2]
[338754195,1726908679847,-500.0,0.00014783,2]
[338754196,1726908679858,-500.0,0.00014783,2]
[338754197,1726908679868,-500.0,0.00014783,2]
[338754198,1726908679878,-500.0,0.00014783,2]
[338754199,1726908679889,-500.0,0.00014783,2]
[338754200,1726908679898,-500.0,0.00014783,2]
[338754201,1726908679910,-500.0,0.00014783,2]
[338754202,1726908679920,-500.0,0.00014783,2]
[338754203,1726908679929,-500.0,0.00014783,2]
[338754204,1726908679939,-500.0,0.00014783,2]
[338754205,1726908679949,-335.62506783,0.00014783,2]
[338754206,1726908679959,-500.0,0.00014783,2]
[338754207,1726908679969,-500.0,0.00014783,2]
[338754208,1726908679979,-500.0,0.00014783,2]
[338754209,1726908679988,-500.0,0.00014783,2]
[338754210,1726908679997,-500.0,0.00014783,2]
[338754211,1726908680007,-500.0,0.00014783,2]
[338754212,1726908680016,-500.0,0.00014783,2]
[338754213,1726908680026,-500.0,0.00014783,2]
[338754214,1726908680035,-500.0,0.00014783,2]
[338754215,1726908680045,-510.24,0.00014783,2]
[338754216,1726908680054,-500.0,0.00014783,2]
[338754217,1726908680064,-500.0,0.00014783,2]
[338754218,1726908680073,-500.0,0.00014783,2]
[338754219,1726908680083,-500.0,0.00014783,2]
[338754220,1726908680092,-500.0,0.00014783,2]
[338754221,1726908680102,-500.0,0.00014783,2]
[338754222,1726908680111,-500.0,0.00014783,2]
[338754223,1726908680121,-500.0,0.00014783,2]
[338754224,1726908680131,-500.0,0.00014783,2]
[338754225,1726908680140,-616.44,0.00014783,2]
[338754226,1726908680150,-500.0,0.00014783,2]
[338754227,1726908680160,-500.0,0.00014783,2]